fUSD/lending_fUSD_20260614
["ID","MTS","AMOUNT","RATE_DAILY","PERIOD"]
[425031371,1781436705000,-1809.73,0.00029315,8]
[425031372,1781436705000,-500.0,0.00029315,8]
[425031416,1781436705000,-694.06,0.00029315,8]
[425031389,1781436705000,-988.49,0.00029315,8]
[425031376,1781436705000,-1887.39,0.00029315,8]
[425031379,1781436705000,-909.03,0.00029315,8]
[425031378,1781436705000,-500.0,0.00029315,8]
[425031380,1781436705000,-1873.07,0.00029315,8]
[425031382,1781436705000,-505.32,0.00029315,8]
[425031381,1781436705000,-784.59,0.00029315,8]
[425031383,1781436705000,-705.42,0.00029315,8]
[425031384,1781436705000,-3284.49,0.00029315,8]
[425031385,1781436705000,-754.48,0.00029315,8]
[425031386,1781436705000,-2440.94,0.00029315,8]
[425031390,1781436705000,-502.46,0.00029315,8]
[425031391,1781436705000,-1072.21,0.00029315,8]
[425031393,1781436705000,-713.95,0.00029315,8]
[425031375,1781436705000,-1112.89,0.00029315,8]
[425031415,1781436705000,-567.18,0.00029315,8]
[425031373,1781436705000,-500.0,0.00029315,8]
[425031421,1781436705000,-500.0,0.00029315,8]
[425031450,1781436705000,-1568.53,0.00029315,8]
[425031453,1781436705000,-500.0,0.00029315,8]
[425031451,1781436705000,-922.3,0.00029315,8]
[425031448,1781436705000,-796.79,0.00029315,8]
[425031457,1781436705000,-500.0,0.00029315,8]
[425031462,1781436705000,-1065.92,0.00029315,8]
[425031464,1781436705000,-500.0,0.00029315,8]
[425031459,1781436705000,-500.0,0.00029315,8]
[425031461,1781436705000,-500.0,0.00029315,8]
[425031460,1781436705000,-552.92,0.00029315,8]
[425031458,1781436705000,-500.0,0.00029315,8]
[425031465,1781436705000,-500.0,0.00029315,8]
[425031452,1781436705000,-500.0,0.00029315,8]
[425031467,1781436705000,-1671.31,0.00029315,8]
[425031466,1781436705000,-500.0,0.00029315,8]
[425031470,1781436705000,-464.9247147,0.00029315,8]
[425031473,1781436705000,-2417.92,0.00029315,8]
[425031469,1781436705000,-520.94,0.00029315,8]
[425031472,1781436705000,-735.99,0.00029315,8]
[425031471,1781436705000,-456.72196583,0.00029315,2]
[425031474,1781436705000,-737.24,0.00029315,8]
[425031476,1781436705000,-500.0,0.00029315,8]
[425031475,1781436705000,-500.0,0.00029315,8]
[425031477,1781436705000,-500.0,0.00029315,8]
[425031478,1781436705000,-1765.0,0.00029315,8]
[425031422,1781436705000,-513.29,0.00029315,8]
[425031463,1781436705000,-500.0,0.00029315,8]
[425031445,1781436705000,-500.0,0.00029315,8]
[425031468,1781436705000,-500.0,0.00029315,8]
[425031447,1781436705000,-500.0,0.00029315,8]
[425031449,1781436705000,-500.0,0.00029315,8]
[425031431,1781436705000,-500.0,0.00029315,8]
[425031424,1781436705000,-1045.1,0.00029315,8]
[425031423,1781436705000,-554.92,0.00029315,8]
[425031426,1781436705000,-815.3,0.00029315,8]
[425031429,1781436705000,-500.0,0.00029315,8]
[425031428,1781436705000,-500.0,0.00029315,8]
[425031427,1781436705000,-1715.79,0.00029315,8]
[425031425,1781436705000,-509.47,0.00029315,8]
[425031436,1781436705000,-500.0,0.00029315,8]
[425031432,1781436705000,-500.0,0.00029315,8]
[425031438,1781436705000,-500.0,0.00029315,8]
[425031433,1781436705000,-2529.39,0.00029315,8]
[425031430,1781436705000,-749.52,0.00029315,8]
[425031454,1781436705000,-500.0,0.00029315,8]
[425031455,1781436705000,-500.0,0.00029315,8]
[425031434,1781436705000,-1806.53,0.00029315,8]
[425031456,1781436705000,-167.49412279,0.00029315,8]
[425031446,1781436705000,-1203.27,0.00029315,8]
[425031443,1781436705000,-3435.37,0.00029315,8]
[425031442,1781436705000,-500.0,0.00029315,8]
[425031444,1781436705000,-574.53,0.00029315,8]
[425031441,1781436705000,-1537.37,0.00029315,8]
[425031435,1781436705000,-658.83,0.00029315,8]
[425031440,1781436705000,-560.26,0.00029315,8]
[425031437,1781436705000,-1518.26,0.00029315,8]
[425031439,1781436705000,-2097.15,0.00029315,8]
[425031519,1781436706000,-1000.0,0.00029315,8]
[425031530,1781436706000,-1674.0,0.0002946,30]
[425031520,1781436706000,-2165.99,0.00029315,8]
[425031518,1781436706000,-500.0,0.00029315,8]
[425031512,1781436706000,-1077.81,0.00029315,8]
[425031516,1781436706000,-500.0,0.00029315,8]
[425031510,1781436706000,-500.0,0.00029315,8]
[425031513,1781436706000,-500.0,0.00029315,8]
[425031514,1781436706000,-500.0,0.00029315,8]
[425031511,1781436706000,-500.0,0.00029315,8]
[425031522,1781436706000,-2000.0,0.00029315,2]
[425031515,1781436706000,-601.59,0.00029315,8]
[425031521,1781436706000,-1000.0,0.00029315,8]
[425031539,1781436706000,-169.21,0.00029548,12]
[425031523,1781436706000,-256.76119062,0.0002932,2]
[425031526,1781436706000,-2327.0,0.0002936,3]
[425031525,1781436706000,-160.0,0.0002936,3]
[425031524,1781436706000,-161.0,0.0002936,3]
[425031528,1781436706000,-160.0,0.00029391,3]
[425031527,1781436706000,-150.0,0.00029372,2]
[425031531,1781436706000,-318.88293329,0.00029483,2]
[425031532,1781436706000,-1000.0,0.000295,2]
[425031533,1781436706000,-10000.0,0.000295,2]
[425031535,1781436706000,-2148.67,0.000295,7]
[425031537,1781436706000,-236736.32,0.00029548,12]
[425031534,1781436706000,-1590.57,0.000295,7]
[425031506,1781436706000,-500.0,0.00029315,8]
[425031529,1781436706000,-500.0,0.00029414,8]
[425031505,1781436706000,-500.0,0.00029315,8]
[425031479,1781436706000,-500.0,0.00029315,8]
[425031517,1781436706000,-500.0,0.00029315,8]
[425031480,1781436706000,-500.0,0.00029315,8]
[425031540,1781436706000,-2292.85,0.00029575,8]
[425031481,1781436706000,-500.0,0.00029315,8]
[425031484,1781436706000,-500.0,0.00029315,8]
[425031486,1781436706000,-500.0,0.00029315,8]
[425031483,1781436706000,-415.00632862,0.00029315,8]
[425031482,1781436706000,-500.0,0.00029315,8]
[425031487,1781436706000,-500.0,0.00029315,8]
[425031488,1781436706000,-792.24003188,0.00029315,8]
[425031485,1781436706000,-500.0,0.00029315,8]
[425031489,1781436706000,-512.7032,0.00029315,8]
[425031492,1781436706000,-500.0,0.00029315,8]
[425031493,1781436706000,-500.0,0.00029315,8]
[425031507,1781436706000,-500.0,0.00029315,8]
[425031490,1781436706000,-500.0,0.00029315,8]
[425031496,1781436706000,-500.0,0.00029315,8]
[425031495,1781436706000,-500.0,0.00029315,8]
[425031494,1781436706000,-500.0,0.00029315,8]
[425031499,1781436706000,-648.07,0.00029315,8]
[425031504,1781436706000,-800.59,0.00029315,8]
[425031501,1781436706000,-500.0,0.00029315,8]
[425031498,1781436706000,-500.0,0.00029315,8]
[425031502,1781436706000,-500.0,0.00029315,8]
[425031497,1781436706000,-500.0,0.00029315,8]
[425031503,1781436706000,-500.0,0.00029315,8]
[425031500,1781436706000,-500.0,0.00029315,8]
[425031509,1781436706000,-500.0,0.00029315,8]
[425031508,1781436706000,-500.0,0.00029315,8]
[425031491,1781436706000,-500.0,0.00029315,8]
[425031538,1781436706000,-12902.01,0.00029548,12]
[425031551,1781436706000,-500.0,0.00029588,8]
[425031542,1781436706000,-1636.44,0.00029575,8]
[425031569,1781436706000,-500.0,0.00029589,8]
[425031573,1781436706000,-500.0,0.00029589,8]
[425031575,1781436706000,-500.0,0.00029589,8]
[425031579,1781436706000,-521.9,0.00029589,8]
[425031576,1781436706000,-500.0,0.00029589,8]
[425031574,1781436706000,-500.0,0.00029589,8]
[425031577,1781436706000,-779.21,0.00029589,8]
[425031578,1781436706000,-961.38,0.00029589,8]
[425031584,1781436706000,-537.56,0.00029589,8]
[425031582,1781436706000,-500.0,0.00029589,8]
[425031587,1781436706000,-1289.85,0.00029589,8]
[425031583,1781436706000,-556.76,0.00029589,8]
[425031586,1781436706000,-500.0,0.00029589,8]
[425031571,1781436706000,-500.0,0.00029589,8]
[425031585,1781436706000,-500.0,0.00029589,8]
[425031536,1781436706000,-11295.0,0.00029541,10]
[425031591,1781436706000,-811.39,0.00029589,8]
[425031593,1781436706000,-812.74,0.00029589,8]
[425031589,1781436706000,-500.0,0.00029589,8]
[425031590,1781436706000,-500.0,0.00029589,8]
[425031594,1781436706000,-1633.28,0.00029589,8]
[425031595,1781436706000,-500.0,0.00029589,8]
[425031596,1781436706000,-806.3,0.00029589,8]
[425031601,1781436706000,-500.0,0.00029589,8]
[425031600,1781436706000,-500.0,0.00029589,8]
[425031599,1781436706000,-500.0,0.00029589,8]
[425031598,1781436706000,-500.0,0.00029589,8]
[425031597,1781436706000,-1359.23,0.00029589,8]
[425031592,1781436706000,-500.0,0.00029589,8]
[425031572,1781436706000,-500.0,0.00029589,8]
[425031588,1781436706000,-523.52,0.00029589,8]
[425031580,1781436706000,-500.0,0.00029589,8]
[425031581,1781436706000,-601.94,0.00029589,8]
[425031543,1781436706000,-565.89,0.00029575,8]
[425031545,1781436706000,-500.0,0.00029586,8]
[425031555,1781436706000,-1506.29,0.00029589,8]
[425031544,1781436706000,-1066.66,0.00029575,8]
[425031546,1781436706000,-500.0,0.00029587,8]
[425031541,1781436706000,-706.18,0.00029575,8]
[425031547,1781436706000,-4262.73,0.00029588,8]
[425031549,1781436706000,-956.36471393,0.00029588,8]
[425031553,1781436706000,-500.0,0.00029589,8]
[425031550,1781436706000,-956.36471392,0.00029588,8]
[425031554,1781436706000,-500.0,0.00029589,8]
[425031552,1781436706000,-500.0,0.00029589,8]
[425031548,1781436706000,-983.27,0.00029588,8]
[425031559,1781436706000,-2156.37,0.00029589,8]
[425031570,1781436706000,-500.0,0.00029589,8]
[425031556,1781436706000,-500.0,0.00029589,8]
[425031567,1781436706000,-599.77,0.00029589,8]
[425031566,1781436706000,-500.0,0.00029589,8]
[425031563,1781436706000,-815.38,0.00029589,8]
[425031568,1781436706000,-500.0,0.00029589,8]
[425031564,1781436706000,-500.0,0.00029589,8]
[425031557,1781436706000,-1286.88,0.00029589,8]
[425031561,1781436706000,-500.0,0.00029589,8]
[425031562,1781436706000,-531.68,0.00029589,8]
[425031558,1781436706000,-500.0,0.00029589,8]
[425031560,1781436706000,-500.0,0.00029589,8]
[425031565,1781436706000,-1488.35,0.00029589,8]
[425031623,1781436707000,-326.51272392,0.00029589,8]
[425031627,1781436707000,-707.44,0.00029589,8]
[425031622,1781436707000,-575.17,0.00029589,8]
[425031621,1781436707000,-500.0,0.00029589,8]
[425031626,1781436707000,-500.0,0.00029589,8]
[425031628,1781436707000,-890.71,0.00029589,8]
[425031625,1781436707000,-552.31,0.00029589,8]
[425031631,1781436707000,-500.0,0.00029589,8]
[425031630,1781436707000,-500.0,0.00029589,8]
[425031629,1781436707000,-515.11,0.00029589,8]
[425031632,1781436707000,-614.66,0.00029589,8]
[425031635,1781436707000,-1088.42,0.00029589,8]
[425031633,1781436707000,-1348.17,0.00029589,8]
[425031634,1781436707000,-500.0,0.00029589,8]
[425031636,1781436707000,-500.0,0.00029589,8]
[425031624,1781436707000,-498.0,0.00029589,8]
[425031619,1781436707000,-1745.46,0.00029589,8]
[425031606,1781436707000,-500.0,0.00029589,8]
[425031614,1781436707000,-664.77,0.00029589,8]
[425031638,1781436707000,-500.0,0.00029589,8]
[425031602,1781436707000,-1597.46,0.00029589,8]
[425031603,1781436707000,-500.0,0.00029589,8]
[425031604,1781436707000,-757.43,0.00029589,8]
[425031605,1781436707000,-500.0,0.00029589,8]
[425031608,1781436707000,-500.0,0.00029589,8]
[425031618,1781436707000,-671.22,0.00029589,8]
[425031620,1781436707000,-629.17,0.00029589,8]
[425031607,1781436707000,-896.92,0.00029589,8]
[425031609,1781436707000,-464.69274065,0.00029589,8]
[425031616,1781436707000,-500.0,0.00029589,8]
[425031610,1781436707000,-774.14,0.00029589,8]
[425031615,1781436707000,-679.47,0.00029589,8]
[425031617,1781436707000,-564.22,0.00029589,8]
[425031613,1781436707000,-919.22,0.00029589,8]
[425031611,1781436707000,-500.0,0.00029589,8]
[425031612,1781436707000,-859.8,0.00029589,8]
[425031637,1781436707000,-500.0,0.00029589,8]
[425031661,1781436707000,-500.0,0.00029589,8]
[425031642,1781436707000,-1020.0,0.00029589,8]
[425031660,1781436707000,-1928.24,0.00029589,8]
[425031663,1781436707000,-926.35,0.00029589,8]
[425031664,1781436707000,-500.0,0.00029589,8]
[425031666,1781436707000,-1220.26,0.00029589,8]
[425031665,1781436707000,-726.26,0.00029589,8]
[425031668,1781436707000,-554.77,0.00029589,8]
[425031672,1781436707000,-1356.84,0.00029589,8]
[425031670,1781436707000,-500.0,0.00029589,8]
[425031671,1781436707000,-500.0,0.00029589,8]
[425031669,1781436707000,-977.24,0.00029589,8]
[425031674,1781436707000,-569.74,0.00029589,8]
[425031673,1781436707000,-500.0,0.00029589,8]
[425031675,1781436707000,-500.0,0.00029589,8]
[425031676,1781436707000,-500.0,0.00029589,8]
[425031640,1781436707000,-1250.94,0.00029589,8]
[425031662,1781436707000,-517.72,0.00029589,8]
[425031659,1781436707000,-525.21,0.00029589,8]
[425031667,1781436707000,-500.0,0.00029589,8]
[425031654,1781436707000,-500.0,0.00029589,8]
[425031639,1781436707000,-642.55417791,0.00029589,8]
[425031657,1781436707000,-500.0,0.00029589,8]
[425031641,1781436707000,-1952.73,0.00029589,8]
[425031645,1781436707000,-500.0,0.00029589,8]
[425031647,1781436707000,-787.09,0.00029589,8]
[425031644,1781436707000,-500.0,0.00029589,8]
[425031646,1781436707000,-281.21258851,0.00029589,8]
[425031648,1781436707000,-531.01,0.00029589,7]
[425031643,1781436707000,-978.97,0.00029589,7]
[425031650,1781436707000,-500.0,0.00029589,8]
[425031652,1781436707000,-500.0,0.00029589,8]
[425031653,1781436707000,-775.9,0.00029589,8]
[425031655,1781436707000,-2290.01,0.00029589,8]
[425031651,1781436707000,-2280.24,0.00029589,8]
[425031656,1781436707000,-500.0,0.00029589,8]
[425031658,1781436707000,-500.0,0.00029589,8]
[425031649,1781436707000,-1008.86,0.00029589,8]
[425031695,1781436708000,-540.71,0.00029589,8]
[425031697,1781436708000,-500.0,0.00029589,8]
[425031699,1781436708000,-1560.74,0.00029589,8]
[425031700,1781436708000,-500.0,0.00029589,8]
[425031701,1781436708000,-1084.4,0.00029589,8]
[425031704,1781436708000,-506.23,0.00029589,8]
[425031710,1781436708000,-1025.91,0.00029589,8]
[425031708,1781436708000,-500.0,0.00029589,8]
[425031705,1781436708000,-678.56,0.00029589,8]
[425031707,1781436708000,-500.0,0.00029589,8]
[425031709,1781436708000,-500.0,0.00029589,8]
[425031706,1781436708000,-869.79,0.00029589,8]
[425031712,1781436708000,-518.31,0.00029589,8]
[425031698,1781436708000,-582.36,0.00029589,8]
[425031703,1781436708000,-538.92,0.00029589,8]
[425031696,1781436708000,-500.0,0.00029589,8]
[425031679,1781436708000,-556.64,0.00029589,8]
[425031694,1781436708000,-1212.61,0.00029589,8]
[425031711,1781436708000,-874.3,0.00029589,8]
[425031680,1781436708000,-692.5,0.00029589,8]
[425031678,1781436708000,-897.18,0.00029589,8]
[425031677,1781436708000,-1678.62,0.00029589,8]
[425031682,1781436708000,-500.0,0.00029589,8]
[425031681,1781436708000,-895.56,0.00029589,8]
[425031684,1781436708000,-578.0,0.00029589,8]
[425031690,1781436708000,-569.66,0.00029589,8]
[425031683,1781436708000,-638.36,0.00029589,8]
[425031685,1781436708000,-563.36726103,0.00029589,8]
[425031687,1781436708000,-500.0,0.00029589,8]
[425031689,1781436708000,-500.0,0.00029589,8]
[425031688,1781436708000,-1251.89,0.00029589,8]
[425031693,1781436708000,-500.0,0.00029589,8]
[425031692,1781436708000,-500.0,0.00029589,8]
[425031691,1781436708000,-176.28883585,0.00029589,8]
[425031686,1781436708000,-537.41,0.00029589,8]
[425031713,1781436708000,-500.0,0.00029589,8]
[425031702,1781436708000,-2765.89,0.00029589,8]
[425031717,1781436708000,-602.41,0.00029589,8]
[425031738,1781436708000,-500.0,0.00029589,8]
[425031734,1781436708000,-1099.49,0.00029589,8]
[425031737,1781436708000,-1200.46,0.00029589,8]
[425031740,1781436708000,-500.0,0.00029589,8]
[425031739,1781436708000,-654.37,0.00029589,8]
[425031747,1781436708000,-634.38,0.00029589,8]
[425031743,1781436708000,-777.97,0.00029589,8]
[425031736,1781436708000,-500.0,0.00029589,8]
[425031744,1781436708000,-500.0,0.00029589,8]
[425031742,1781436708000,-912.82,0.00029589,8]
[425031746,1781436708000,-1189.81,0.00029589,8]
[425031748,1781436708000,-500.0,0.00029589,8]
[425031751,1781436708000,-500.0,0.00029589,8]
[425031750,1781436708000,-1588.13,0.00029589,8]
[425031749,1781436708000,-552.94,0.00029589,8]
[425031714,1781436708000,-500.0,0.00029589,8]
[425031745,1781436708000,-774.71,0.00029589,8]
[425031735,1781436708000,-531.55,0.00029589,8]
[425031741,1781436708000,-522.95,0.00029589,8]
[425031733,1781436708000,-987.93,0.00029589,8]
[425031715,1781436708000,-500.0,0.00029589,8]
[425031730,1781436708000,-500.0,0.00029589,8]
[425031716,1781436708000,-1370.23,0.00029589,8]
[425031718,1781436708000,-500.0,0.00029589,8]
[425031720,1781436708000,-2334.31,0.00029589,8]
[425031721,1781436708000,-500.0,0.00029589,8]
[425031724,1781436708000,-568.61,0.00029589,8]
[425031722,1781436708000,-500.0,0.00029589,8]
[425031719,1781436708000,-500.0,0.00029589,8]
[425031725,1781436708000,-500.0,0.00029589,8]
[425031727,1781436708000,-500.0,0.00029589,8]
[425031729,1781436708000,-1648.44,0.00029589,8]
[425031731,1781436708000,-1811.24,0.00029589,8]
[425031732,1781436708000,-1003.12,0.00029589,8]
[425031728,1781436708000,-500.0,0.00029589,8]
[425031726,1781436708000,-160.49376553,0.00029589,8]
[425031723,1781436708000,-503.63,0.00029589,8]
[425031773,1781436709000,-500.0,0.00029589,8]
[425031763,1781436709000,-500.0,0.00029589,8]
[425031770,1781436709000,-500.0,0.00029589,8]
[425031764,1781436709000,-2216.26,0.00029589,8]
[425031766,1781436709000,-560.4,0.00029589,8]
[425031767,1781436709000,-500.0,0.00029589,8]
[425031765,1781436709000,-500.0,0.00029589,8]
[425031757,1781436709000,-636.28,0.00029589,8]
[425031755,1781436709000,-570.94,0.00029589,8]
[425031761,1781436709000,-1919.91,0.00029589,8]
[425031759,1781436709000,-500.0,0.00029589,8]
[425031760,1781436709000,-741.68,0.00029589,8]
[425031758,1781436709000,-787.18,0.00029589,8]
[425031756,1781436709000,-500.0,0.00029589,8]
[425031752,1781436709000,-912.53,0.00029589,8]
[425031754,1781436709000,-500.0,0.00029589,8]
[425031753,1781436709000,-598.75,0.00029589,8]
[425031768,1781436709000,-995.65,0.00029589,8]
[425031762,1781436709000,-500.0,0.00029589,8]
[425031771,1781436709000,-605.94,0.00029589,8]
[425031779,1781436709000,-846.65,0.00029589,8]
[425031774,1781436709000,-830.68,0.00029589,8]
[425031792,1781436709000,-462.44589381,0.00029589,8]
[425031790,1781436709000,-793.99,0.00029589,8]
[425031789,1781436709000,-151.23233983,0.00029589,8]
[425031791,1781436709000,-500.0,0.00029589,8]
[425031787,1781436709000,-1023.56,0.00029589,8]
[425031788,1781436709000,-500.0,0.00029589,8]
[425031785,1781436709000,-500.0,0.00029589,8]
[425031784,1781436709000,-697.82,0.00029589,8]
[425031786,1781436709000,-1341.19,0.00029589,8]
[425031780,1781436709000,-2873.83,0.00029589,8]
[425031782,1781436709000,-500.0,0.00029589,8]
[425031783,1781436709000,-500.0,0.00029589,8]
[425031778,1781436709000,-1100.07,0.00029589,8]
[425031776,1781436709000,-500.0,0.00029589,8]
[425031775,1781436709000,-500.0,0.00029589,8]
[425031777,1781436709000,-735.69,0.00029589,8]
[425031772,1781436709000,-500.0,0.00029589,8]
[425031781,1781436709000,-500.0,0.00029589,8]
[425031769,1781436709000,-500.0,0.00029589,8]
[425031794,1781436710000,-477.30090369,0.00029589,8]
[425031795,1781436710000,-22.69909631,0.00029589,8]
[425031796,1781436710000,-357.61037721,0.00029589,8]
[425031793,1781436710000,-37.55410619,0.00029589,8]
[425031813,1781436711000,-500.0,0.00029589,8]
[425031825,1781436711000,-2115.09,0.00029589,8]
[425031817,1781436711000,-784.08,0.00029589,8]
[425031818,1781436711000,-583.27,0.00029589,8]
[425031822,1781436711000,-500.0,0.00029589,8]
[425031819,1781436711000,-500.0,0.00029589,8]
[425031821,1781436711000,-500.0,0.00029589,8]
[425031827,1781436711000,-500.0,0.00029589,8]
[425031829,1781436711000,-500.0,0.00029589,8]
[425031826,1781436711000,-500.0,0.00029589,8]
[425031832,1781436711000,-872.36206652,0.00029589,8]
[425031834,1781436711000,-410.4185683,0.00029589,8]
[425031830,1781436711000,-585.03,0.00029589,8]
[425031833,1781436711000,-325.91793348,0.00029589,8]
[425031831,1781436711000,-500.0,0.00029589,8]
[425031816,1781436711000,-557.26,0.00029589,8]
[425031828,1781436711000,-1675.91,0.00029589,8]
[425031824,1781436711000,-500.0,0.00029589,8]
[425031835,1781436711000,-500.0,0.00027397,2]
[425031823,1781436711000,-1659.48,0.00029589,8]
[425031797,1781436711000,-674.0,0.00027397,10]
[425031799,1781436711000,-436.10734751,0.00027397,2]
[425031798,1781436711000,-300.3,0.00027397,2]
[425031800,1781436711000,-63.89265249,0.00027397,2]
[425031802,1781436711000,-142.38962279,0.00029589,8]
[425031803,1781436711000,-722.31,0.00029589,8]
[425031809,1781436711000,-1123.95,0.00029589,8]
[425031804,1781436711000,-781.07,0.00029589,8]
[425031801,1781436711000,-629.220199,0.000282,2]
[425031807,1781436711000,-500.0,0.00029589,8]
[425031810,1781436711000,-1912.54,0.00029589,8]
[425031806,1781436711000,-500.0,0.00029589,8]
[425031808,1781436711000,-500.0,0.00029589,8]
[425031805,1781436711000,-500.0,0.00029589,8]
[425031811,1781436711000,-1784.22,0.00029589,8]
[425031812,1781436711000,-831.75,0.00029589,8]
[425031814,1781436711000,-500.0,0.00029589,8]
[425031815,1781436711000,-532.89,0.00029589,8]
[425031836,1781436711000,-500.0,0.00027397,2]
[425031820,1781436711000,-545.5,0.00029589,8]
[425031840,1781436711000,-500.0,0.00027671,8]
[425031856,1781436711000,-1289.21,0.00029589,8]
[425031861,1781436711000,-913.06,0.00029589,8]
[425031871,1781436711000,-500.0,0.00029589,8]
[425031869,1781436711000,-500.0,0.00029589,8]
[425031863,1781436711000,-845.71,0.00029589,8]
[425031862,1781436711000,-500.0,0.00029589,8]
[425031866,1781436711000,-500.0,0.00029589,8]
[425031864,1781436711000,-645.65,0.00029589,8]
[425031872,1781436711000,-516.16,0.00029589,8]
[425031860,1781436711000,-1080.75,0.00029589,8]
[425031865,1781436711000,-691.93,0.00029589,8]
[425031867,1781436711000,-1471.09,0.00029589,8]
[425031870,1781436711000,-559.98,0.00029589,8]
[425031874,1781436711000,-2577.84151985,0.00029589,8]
[425031873,1781436711000,-500.0,0.00029589,8]
[425031876,1781436711000,-2047.67340148,0.00028194,7]
[425031838,1781436711000,-1505.15,0.0002755,30]
[425031855,1781436711000,-589.15,0.00029589,8]
[425031858,1781436711000,-500.0,0.00029589,8]
[425031868,1781436711000,-681.29,0.00029589,8]
[425031854,1781436711000,-500.0,0.00029589,8]
[425031842,1781436711000,-1107.0531808,0.00027711,7]
[425031839,1781436711000,-500.0,0.00027671,8]
[425031847,1781436711000,-1779.14437219,0.00027872,2]
[425031845,1781436711000,-454.0,0.00027671,10]
[425031844,1781436711000,-926.82562781,0.00027872,2]
[425031841,1781436711000,-582.69447445,0.00027671,8]
[425031846,1781436711000,-1505.15,0.00027711,7]
[425031843,1781436711000,-1598.9168192,0.00027711,7]
[425031837,1781436711000,-2705.97,0.0002755,30]
[425031859,1781436711000,-500.0,0.00029589,8]
[425031852,1781436711000,-500.0,0.00029589,8]
[425031875,1781436711000,-2340.86,0.0002755,30]
[425031853,1781436711000,-500.0,0.00029589,8]
[425031851,1781436711000,-1263.3514317,0.00029589,8]
[425031857,1781436711000,-1059.93,0.00029589,8]
[425031850,1781436711000,-591.59,0.00028218,8]
[425031849,1781436711000,-150.62,0.00028205,2]
[425031848,1781436711000,-2705.97,0.00028033,30]
[425031879,1781436826000,-522.49,0.00016438,2]
[425031880,1781436842000,-522.67579516,0.00016438,2]
[425031884,1781437536000,-470.2751547,0.00016438,2]
[425031883,1781437536000,-114.80420484,0.00016438,2]
[425031886,1781437645000,-30.99030106,0.00016438,2]
[425031885,1781437645000,-463.4548453,0.00016438,2]
[425031889,1781437650000,-138.99345636,0.00016682,2]
[425031888,1781437650000,-300.0,0.00016682,2]
[425031887,1781437650000,-686.42969894,0.00016438,2]
[425031906,1781437833000,-500.0,0.00016926,2]
[425031905,1781437833000,-500.0,0.00016926,2]
[425031908,1781437833000,-57.33781988,0.00016926,2]
[425031903,1781437833000,-500.0,0.00016926,2]
[425031902,1781437833000,-463.64358345,0.00016926,2]
[425031900,1781437833000,-306.7897216,0.00016925,2]
[425031898,1781437833000,-366.28094911,0.00016925,2]
[425031901,1781437833000,-36.35641655,0.00016926,2]
[425031899,1781437833000,-188.55302102,0.00016925,2]
[425031895,1781437833000,-218.37527295,0.00016804,2]
[425031896,1781437833000,-380.92685705,0.00016925,2]
[425031907,1781437833000,-269.775061,0.00016926,2]
[425031897,1781437833000,-119.07314295,0.00016925,2]
[425031912,1781437833000,-506.82,0.00016931,2]
[425031917,1781437833000,-168.97100238,0.00018253,2]